Cogmind - Beta 16 --- EXPLORER MODE // 2026.01.23 @ 14:48:48 Player: K.K.Y. Result: Destroyed by OT-58U(R) with Subdweller Machine Gun Performance ------------- Evolutions (0) 0 Regions Visited (3) 600 Robots Destroyed (42) 210 Value Destroyed (1155) 1155 Prototype IDs (0) 0 Alien Tech Used (0) 0 Bonus (-383) -383 TOTAL SCORE: 1582 Bonus ------- Friendly Fire -383 Cogmind --------- Core Integrity 0/250 Matter 250/300 Energy 54/160 System Corruption 0% Temperature Cool (0) Movement Core (400) Ox7 Location -10/Subcaves Parts ------- > --- POWER (1) -------- Light Nuclear Core > --- PROPULSION (2) --- (None) > --- UTILITY (3) ------ Improved Heat Sink Medium Storage Unit Structural Scanner > --- WEAPON (2) ------- Pulse Rifle Battle Cannon > --- INVENTORY (10) --- Scrap Suit Improved Heat Sink High-capacity Storage Unit Improved Signal Interpreter Improved Terrain Scanner Hardened Medium Armor Plating Mining Laser Peak State ------------ > --- POWER ------------ Light Nuclear Core > --- PROPULSION ------- Light Treads Advanced Treads > --- UTILITY ---------- Improved Heat Sink Medium Storage Unit Structural Scanner > --- WEAPON ----------- Pulse Rifle Beamcaster > --- INVENTORY -------- Light Nuclear Core Scrap Suit Improved Heat Sink High-capacity Storage Unit Improved Signal Interpreter Improved Terrain Scanner Hardened Medium Armor Plating Particle Gun Mining Laser [Rating: 22] Favorites ----------- Power Light Nuclear Core Engine Ion Engine Power Core Light Nuclear Core Propulsion Advanced Treads Treads Advanced Treads Leg Aluminum Leg Utility Improved Heat Sink Device Improved Heat Sink Storage Medium Storage Unit Weapon Pulse Rifle Energy Gun Pulse Rifle Ballistic Gun Light Assault Rifle Ballistic Cannon Battle Cannon Build | -11 -10 -10 -10 ------- Run | Yrd Mat Min Sub Slots Evolved 1 | . 1 . . Power . | . . . . Propulsion . | . . . . Utility 1 | . 1 . . Weapon . | . . . . Parts Attached 25 | 4 12 6 3 Power 3 | . 2 . 1 Engine 1 | . 1 . . Core 2 | . 1 . 1 Reactor . | . . . . Propulsion 8 | 2 4 1 1 Treads 2 | . . 1 1 Leg 6 | 2 4 . . Wheel . | . . . . Hover . | . . . . Flight . | . . . . Utility 6 | . 3 3 . Device 5 | . 3 2 . Storage 1 | . . 1 . Processor . | . . . . Hackware . | . . . . Protection . | . . . . Artifact . | . . . . Weapon 8 | 2 3 2 1 Energy Gun 6 | 1 3 2 . Energy Cannon . | . . . . Ballistic Gun 1 | 1 . . . Ballistic Cannon 1 | . . . 1 Launcher . | . . . . Special Weapon . | . . . . Impact Weapon . | . . . . Slashing Weapon . | . . . . Piercing Weapon . | . . . . Special Melee Weapon . | . . . . Unidentified Prototypes . | . . . . Parts Lost 8 | . 4 . 4 Power 1 | . . . 1 Propulsion 5 | . 3 . 2 Utility . | . . . . Weapon 2 | . 1 . 1 Highest Loss Streak 3 | . 2 . 3 To Critical Strikes . | . . . . Average Backups 7 | 1 4 8 8 Power . | . . . . Propulsion . | . . . . Utility 5 | . 3 5 6 Weapon 1 | . 1 1 1 Tool/Special . | . . . . Unused Backups 9 | 2 . . 7 Power . | . . . . Propulsion 2 | 2 . . . Utility 6 | . . . 6 Weapon 1 | . . . 1 Tool/Special . | . . . . Average Slot Usage (%) 80 | . 58 87 91 Core 9 | . 3 12 11 Treads 10 | . . 11 16 Leg 7 | . 24 . . Device 19 | . 4 25 25 Storage 8 | . . 11 12 Energy Gun 23 | . 20 25 24 Ballistic Gun 1 | . 3 . . Peak Build Rating 22 | 4 11 21 22 Average Rating 16 | 3 5 19 21 On Entrance 9 | . 4 11 21 Avg Prop Armor Cover (%) . | . . . . Naked Turns . | . . . . Heaviest Build 25 | 2 13 25 25 Greatest Support 42 | 20 20 22 42 Greatest Overweight (x) 2 | . 2 1 1 Average Overweight (x) . | . . . . Largest Inventory Capacity 10 | 5 5 10 10 Average Capacity 8 | 5 5 9 10 Most Carried 10 | 5 5 10 10 Average Carried 8 | 1 4 9 9 Final Capacity 10 | 5 5 10 10 Final Carried 10 | 3 5 10 8 Class Distribution -------------------- 88% | Hacker-Mutant 11% | Scavenger-Mutant Dominant Class ---------------- Hacker-Mutant | -10/Materials Hacker-Mutant | -10/Mines Hacker-Mutant | -10/Subcaves Resources | -11 -10 -10 -10 ----------- Run | Yrd Mat Min Sub Matter Collected 454 | 248 136 50 20 Remotely . | . . . . Salvage Created 1611 | 139 1049 139 284 Parts 81 | 7 57 9 8 Haulers Intercepted . | . . . . Recyclers Shooed 4 | 1 3 . . Parts Field Recycled . | . . . . Retrieved Matter . | . . . . Parts Self-Destructed . | . . . . Prevented . | . . . . Parts Restored . | . . . . Kills | -11 -10 -10 -10 ------- Run | Yrd Mat Min Sub Combat Hostiles Destroyed 30 | . 20 2 8 Guns 29 | . 19 2 8 Classes Destroyed 8 | 2 3 1 2 Worker 3 | . 3 . . Tunneler 2 | 2 . . . Recycler 3 | 1 2 . . Watcher 2 | . 2 . . Swarmer 2 | . . 2 . Grunt 22 | . 20 . 2 Sentry 1 | . . . 1 Subdweller 5 | . . . 5 Thug 2 | . . 2 . Best Kill Streak 5 | 2 5 2 2 Combat Bots Only 5 | . 5 2 2 Max Kills in Single Turn 2 | 1 2 1 1 Gunslinging 1 | . 1 . . Exploded . | . . . . Melee . | . . . . Uniques/NPCs Destroyed . | . . . . Combat | -11 -10 -10 -10 -------- Run | Yrd Mat Min Sub Hostile Shots Fired 187 | . 125 3 59 Missed 57 | . 34 . 23 Hits 130 | . 91 3 36 Projectile 130 | . 91 3 36 Critical Strikes 2 | . 1 . 1 Damage Taken 1152 | . 662 15 475 Core 258 | . 182 . 76 Absorbed by Shields . | . . . . Ignored by Resistances 697 | . 423 10 264 Core Remaining (%) 100 | 100 . . . Volleys Fired 135 | 8 78 9 40 Largest 2 | 2 2 2 2 Hottest 138 | 60 115 128 138 Shots Fired 252 | 16 139 18 79 Gun 245 | 16 139 18 72 Cannon 7 | . . . 7 Launcher . | . . . . Special . | . . . . Kinetic 41 | 8 26 . 7 Thermal 211 | 8 113 18 72 Explosive . | . . . . Electromagnetic . | . . . . Robot Hit Streak 45 | 8 32 20 45 Robot Miss Streak 2 | 1 2 1 1 Penetration Max . | . . . . Secondary Targets 4 | . 4 . . Max Gunslinging Chain 1 | . 1 . . Shots Hit Robots 219 | 12 121 14 72 Core Hits 79 | 4 52 7 16 Critical Kills . | . . . . Critical Parts Destroyed 1 | . 1 . . Critical Strikes 9 | . 3 1 5 Burn 7 | . 2 1 4 Destroy 1 | . 1 . . Blast 1 | . . . 1 Melee Attacks . | . . . . Impact . | . . . . Slashing . | . . . . Piercing . | . . . . Sneak Attacks . | . . . . Combat Hostiles . | . . . . Follow-up Attacks . | . . . . Damage Inflicted 2940 | 114 1399 213 1214 Guns 2829 | 114 1399 213 1103 Cannons 111 | . . . 111 Explosions . | . . . . Melee . | . . . . Ramming . | . . . . Kinetic 326 | 39 176 . 111 Thermal 2614 | 75 1223 213 1103 Explosive . | . . . . Electromagnetic . | . . . . Impact . | . . . . Slashing . | . . . . Piercing . | . . . . Highest Corruption . | . . . . Average Corruption . | . . . . Corruption Purged . | . . . . Corruption Blocked . | . . . . Overload Shots . | . . . . Overflow Damage . | . . . . Projectiles . | . . . . Explosions . | . . . . Melee . | . . . . Knockbacks 2 | . . . 2 Impact . | . . . . Kinetic 2 | . . . 2 Secondary . | . . . . Self-Inflicted Damage . | . . . . Shots . | . . . . Rammed . | . . . . Targets Rammed . | . . . . Kicked . | . . . . Crushed . | . . . . Highest Temperature 334 | 20 334 60 3 Average Temperature 93 | 8 102 34 3 Received Heat Transfer 738 | . 615 . 123 Effects 7 | . 7 . . Interference 6 | . 6 . . Short Circuit 1 | . 1 . . Siege Activations . | . . . . Martial Activations . | . . . . Shielding Activations . | . . . . Robots Disrupted . | . . . . Combat Hostiles . | . . . . Robots Corrupted . | . . . . Combat Hostiles . | . . . . Parts Fried . | . . . . Impact Corruptions . | . . . . Robots Melted 1 | . 1 . . Combat Hostiles 1 | . 1 . . Parts Melted 12 | . 6 2 4 Heat Transferred 6326 | 175 3080 592 2479 Parts Sabotaged . | . . . . Parts Stolen . | . . . . Parts Stripped . | . . . . Power Chain Reactions . | . . . . Alert | -11 -10 -10 -10 ------- Run | Yrd Mat Min Sub Maximum Alert Level . | . . . . Low Security (%) 100 | 100 100 100 . Level 1 . | . . . . Level 2 . | . . . . Level 3 . | . . . . Level 4 . | . . . . Level 5 . | . . . . High Security . | . . . . Max Security . | . . . . Peak Influence 100 | 10 100 54 . Initial . | . . . . Average 9 | 1 18 1 . Influence Increases 694 | 15 555 54 70 Destroy 0b10 Robot/C 500 | . 400 40 60 Destroy 0b10 Robot/NC 50 | 15 35 . . Destroy Leader 114 | . 94 10 10 Successful Hack 10 | . 10 . . Disable Machine 4 | . . 4 . Destroy Structure 1 | . 1 . . Lose Combat Pursuer 15 | . 15 . . Influence Decreases 694 | 15 555 54 70 Time Decay 654 | 15 515 54 70 Lost Part 40 | . 40 . . Squads Dispatched 6 | . 5 1 . Investigation 6 | . 5 1 . Extermination . | . . . . Reinforcement . | . . . . Assault . | . . . . Garrison . | . . . . Intercept . | . . . . Searches Triggered . | . . . . Construction Impeded . | . . . . Haulers Reinforced . | . . . . Active Scanning Responses . | . . . . Cargo Convoy Interrupts . | . . . . Stealth | -11 -10 -10 -10 --------- Run | Yrd Mat Min Sub Distress Signals 1 | . 1 . . Communications Jammed . | . . . . Distress Signals . | . . . . Times Spotted 36 | . 25 2 9 Peak Tracking Total 5 | . 5 2 2 Tactical Retreats 1 | . 1 . . Traps | -11 -10 -10 -10 ------- Run | Yrd Mat Min Sub Traps Triggered 2 | . 1 . 1 Indirectly . | . . . . Trap Hack Attempts . | . . . . Triggered . | . . . . Disarmed . | . . . . Reprogrammed . | . . . . Reused . | . . . . Traps Extracted . | . . . . Installed . | . . . . Triggered . | . . . . Machines | -11 -10 -10 -10 ---------- Run | Yrd Mat Min Sub Machines Disabled 1 | . . 1 . Max in Single Turn 1 | . . 1 . Machines Repaired . | . . . . Machines Dismantled . | . . . . Machines Sabotaged . | . . . . Overloaded Fab Kills . | . . . . Hacking | -11 -10 -10 -10 --------- Run | Yrd Mat Min Sub Machines Accessed 10 | . 8 1 1 Terminals 6 | . 6 . . Fabricators . | . . . . Repair Stations . | . . . . Recycling Units 2 | . 2 . . Scanalyzers . | . . . . Garrison Access . | . . . . Total Hacks 27 | . 23 1 3 Successful 11 | . 7 1 3 Failed 16 | . 16 . . Catastrophic 2 | . 2 . . Database Lockouts . | . . . . Manual 19 | . 19 . . Terminals 19 | . 19 . . Fabricators . | . . . . Repair Stations . | . . . . Recycling Units 4 | . 4 . . Scanalyzers . | . . . . Garrison Access . | . . . . Terminal Hacks 10 | . 6 1 3 Record 3 | . . . 3 Part Schematic 6 | . 6 . . Open Door 1 | . . 1 . Fabricator Hacks . | . . . . Repair Station Hacks . | . . . . Recycling Unit Hacks 1 | . 1 . . Retrieve Components 1 | . 1 . . Scanalyzer . | . . . . Garrison Access Hacks . | . . . . Unauthorized Hacks . | . . . . Terminals . | . . . . Fabricators . | . . . . Repair Stations . | . . . . Recycling Units . | . . . . Scanalyzers . | . . . . Garrison Access . | . . . . Data Cores Recovered . | . . . . Used . | . . . . Hacking Detections 7 | . 7 . . Full Trace Events 7 | . 7 . . Feedback Events . | . . . . Feedback Blocked . | . . . . Robot Schematics Acquired . | . . . . Robots Built . | . . . . Authchips . | . . . . Time . | . . . . Total Robot Build Rating . | . . . . Part Schematics Acquired 6 | . 6 . . Parts Built . | . . . . Authchips . | . . . . Time . | . . . . Total Part Build Rating . | . . . . Part Studies Acquired . | . . . . Parts Repaired . | . . . . Time . | . . . . Parts Recycled . | . . . . Recycled Matter . | . . . . Retrieved Matter . | . . . . Retrieved Components 2 | . 2 . . Parts Scanalyzed . | . . . . Part Schematics Acquired . | . . . . Parts Damaged . | . . . . Bothacking | -11 -10 -10 -10 ------------ Run | Yrd Mat Min Sub Used RIF Installer . | . . . . Robots Hacked . | . . . . Non-combat . | . . . . Combat . | . . . . Robot Hacks Applied . | . . . . Relay Couplers Released . | . . . . Fabnet Peak Effective % . | . . . . Robots Rewired . | . . . . Allies Hacked . | . . . . Hacks Repelled . | . . . . Allies | -11 -10 -10 -10 -------- Run | Yrd Mat Min Sub Total Allies . | . . . . Largest Group . | . . . . Highest-Rated Group . | . . . . Highest-Rated Ally . | . . . . Total Orders . | . . . . Ally Attacks . | . . . . Total Damage . | . . . . Kills . | . . . . Allies Corrupted . | . . . . Allies Melted . | . . . . Intel | -11 -10 -10 -10 ------- Run | Yrd Mat Min Sub Active Infowar (turns) 2748 | . . 1120 1628 Structural 2748 | . . 1120 1628 Robot Analysis Total . | . . . . Derelict Logs Recovered 2 | . . 1 1 Drone Launches . | . . . . Drone Recoveries . | . . . . Exploration | -11 -10 -10 -10 ------------- Run | Yrd Mat Min Sub Turns Passed 4272 | 84 1192 1368 1628 Spaces Moved 1950 | 51 782 588 529 Core 32 | 19 13 . . Treads 1096 | . . 567 529 Legs 822 | 32 769 21 . Wheels . | . . . . Hover . | . . . . Flight . | . . . . Fastest Speed 50 | 50 100 120 152 Average Speed 173 | 93 121 220 206 Slowest Speed 225 | 120 190 225 225 Overloaded Moves . | . . . . Propulsion Burnouts . | . . . . Robots Hopped . | . . . . Potential Cave-ins . | . . . . Cave-ins Triggered . | . . . . Exploration Rate (%) 58 | 3 99 98 34 Regions Visited 3 Branch Regions 2 Pre-discovered Areas . | . . . . Known Exits Taken 3 | 1 1 1 . Unknown Exits Taken . | . . . . Scrap Searched 4 | . . . 4 Spaces Dug . | . . . . Terrain Destroyed . | . . . . Melee . | . . . . Projectile . | . . . . AOE . | . . . . Terrain Rammed . | . . . . Walls Destroyed . | . . . . Machines Disabled . | . . . . Actions | -11 -10 -10 -10 --------- Run | Yrd Mat Min Sub Total 2590 | 73 891 642 984 Wait 453 | . 14 29 410 Move 1947 | 50 781 587 529 Hop . | . . . . Pick Up 19 | 9 3 6 1 Fast Attach 8 | . 7 . 1 Attach 7 | 4 1 . 2 Detach . | . . . . Swap 10 | . 4 6 . Drop 11 | 2 3 5 1 Fire 135 | 8 78 9 40 Melee . | . . . . Ram . | . . . . Kick . | . . . . Crush . | . . . . Escape Stasis . | . . . . Rewire . | . . . . Trap . | . . . . Miscellaneous . | . . . . Route ------- -11/Scrapyard -10/Materials (discovered 5 exits: *Mat x3 / *Min / *Sub) -10/Mines (discovered 3 exits: *Mat x2 / *Sub) -10/Subcaves (discovered 1 exit: *Mat) History --------- Turn | Location | Event 11 | -11/Scrapyard | Identified exit to Materials 11 | -11/Scrapyard | Discovered exit to Materials (range 15) 85 | -11/Scrapyard | Entered Materials 85 | -10/Materials | Evolved 1 slot: Utility x1 314 | -10/Materials | Build established: Hacker-Mutant 415 | -10/Materials | Identified exit to Materials 415 | -10/Materials | Discovered exit to Materials (range 13) 598 | -10/Materials | Core integrity fell below 50% 617 | -10/Materials | Identified exit to Mines 617 | -10/Materials | Discovered exit to Mines (range 8) 637 | -10/Materials | Discovered exit to Materials (range 3) 694 | -10/Materials | Discovered exit to Materials (range 13) 1031 | -10/Materials | Identified exit to Subcaves 1031 | -10/Materials | Discovered exit to Subcaves (range 8) 1033 | -10/Materials | Build established: Scavenger-Mutant 1277 | -10/Materials | Entered Mines 1284 | -10/Mines | Met a Derelict shopkeep closing up shop 1303 | -10/Mines | Met a Derelict bent on vengeance 1520 | -10/Mines | Found a Scrap Suit stashed away for nefarious purposes 1527 | -10/Mines | Found Scrap Suit 1532 | -10/Mines | Discovered exit to Materials (range 10) 1604 | -10/Mines | Build established: Hacker-Mutant 1861 | -10/Mines | Discovered exit to Subcaves (range 7) 2129 | -10/Mines | Discovered exit to Materials (range 7) 2154 | -10/Mines | Received a Rocket Launcher from a helpful Derelict 2645 | -10/Mines | Entered Subcaves 2646 | -10/Subcaves | Approached by a straggling Scientist 2947 | -10/Subcaves | Identified exit to Materials 2947 | -10/Subcaves | Discovered exit to Materials (range 10) 3446 | -10/Subcaves | Core integrity fell below 20% 3687 | -10/Subcaves | Visited Clippyterm 3694 | -10/Subcaves | Learned Factory emergency access door positions 3807 | -10/Subcaves | Learned Materials terminal intel 3891 | -10/Subcaves | Shifting Twisted Machinery released Riot Gun 4192 | -10/Subcaves | Shifting Twisted Machinery released Battle Cannon 4273 | -10/Subcaves | Destroyed by OT-58U(R) with Subdweller Machine Gun Last Messages --------------- here" 04022_ V5-FM5(R) suffers critical hit (Burn). 04022_ Sub. Monowheel melted. 04022_ Sub. Power Source melted. 04022_ V5-FM5(R) destroyed. 44-LZ3(c): "I think it's somewhere northeast of here" Battle Cannon falls loose from the Twisted Machinery. 44-LZ3(c): "I think it's somewhere northeast of here" 04242_ Beamcaster destroyed. 04243_ Lgt. Nuclear Core destroyed. 04247_ LT-M8Z(R) destroyed. 04253_ OT-58U(R) suffers critical hit (Burn). 04259_ OT-58U(R) affixes Scrap Shield Fragment to Scrap Shield. 04259_ OT-58U(R) Sub. Power Source blasted off. 04268_ Adv. Treads destroyed. 04268_ OT-58U(R) knocked back. Map ----- +----------------------------------------------------+ | ## ????????????????????????????????????????????? | | # ????????????????????????????????????????????? | | ????????????????????????????????????????????? | | ???????????????????????????????????????????????? | | ?????????????????????????????????????????????????? | | ?????????????????????????????????????????????????? | | #????????????????????????????????????????????????? | | #????????????????????????????????????????????????? | | #????????????????????????????????????????????????? | | ???#######??????????????????????????????????????? | | ??########??????????????????????????????????????? | | ??#### ##??????????????????????????????????????? | | ?#### ###?????????????????###??????????????????? | | ?### ###??????????????????"##??????????????????? | | ### ###??????????????????"""??????????????????? | | ### ##?????????????????? ""#?????????????????? | | # ###???????????????## ####???????????????? | | ###?????????????#### ###"???????????????? | | ##?????????????### ##"""??????????????? | | ## ###?######?????###% %"""??????????????? | | ## ##########?????### ""???????????????? | | ## ##### ###????##%% ##???????????????? | | ### ## ########" R ###???????????????? | | #### ########"* %##??????????????????? | | ##### "### # #*%!###??????????????????? | | ###### """" ]"" @ ###???????????????????? | | ###### """""""" c ## ???????????????????? | | ##### " [ "" # %# ##???????????????????? | | ##### " " #########???????????????????? | | ### ## " ###### ???????????????????? | | ## ##"""" ##??????????????????????????? | | ###??????????????????????????? | | ####??????????????????????????? | | ""####???????????????????????????? | | #####"""""###????????????????????????????? | | ### #####""" ????????????????????????????? | | ### ##### ## ??????????????????????????? | | #### #### ##### # ??????????????????????????? | | ### ### ########??????????????????????????? | | ## ##?####??????????????????????????? | | ###???????????????????????????????? | | ### ####???????????????????????????????? | | ###### #####????????????????????????????????? | | ####### #####?????????????????????????????????? | | ????##########???????????????????????????????????? | | ?????########????????????????????????????????????? | | ?????????????????????????????????????????????????? | | ?????????????????????????????????????????????????? | | ?????????????????????????????????????????????????? | | ?????????????????????????????????????????????????? | +----------------------------------------------------+ Best States ------------- Heat Dissipation 59 Energy Generation 14 Energy Capacity 250 Matter Stores 300 Matter Capacity 300 Sight Range 16 Terrain Scan Density 10 Resistance: KI 35 Resistance: TH 35 Resistance: EX 35 Resistance: EM 35 Resistance: I 35 Resistance: S 35 Resistance: P 35 Evasion (%) 55 Recoil Reduction 2 Offensive Hacking 20 Item Schematics ----------------- Signal Interpreter | -10/Materials | Hacked Sensor Array | -10/Materials | Hacked Sml. Storage Unit | -10/Materials | Hacked Med. Storage Unit | -10/Materials | Hacked Lrg. Storage Unit | -10/Materials | Hacked Hcp. Storage Unit | -10/Materials | Hacked Robot Schematics ------------------ None Fabricated ------------ Nothing Repaired ---------- Nothing Studied --------- None Alien Tech Used ----------------- None Achievements -------------- None Challenges ------------ None Game ------ Seed LightningPointMace Manual? 0 Play Time 00:18:18 Cumulative 307.4 hours Start 2026.01.23 @ 14:34:08 End 2026.01.23 @ 14:48:48 Sessions 1 Manual Loads 0 Difficulty Explorer Special Mode None Game No. 476 Rogue 0 Adventurer 0 Explorer 476 Win Type - Total 0 Types 0/0/0/0/0/0/0/0/0/0 Lore% 76 Gallery% 70 Achievement% 56 Wizard Run 0 Options --------- Layout 1 ASCII 0 Keyboard 0 Movement Mouse Keybinds 1 Fullscreen 1 Font 24/Smallcaps Map View 50x35 Zoom Use 0% Tactical HUD 1 Map Filters NONE Filters NONE Steam 1 RUN: fefa4fbe-1113-4741-84fa-6f612b59c859